bitfinex/quotes_ETHUSD_20251117
["timestamp","ask_amount","ask_price","bid_price","bid_amount"]
[1763393834215,0.405504,3129.0,3126.5,0.405504]
[1763393834379,0.4977,3128.9,3126.7,0.405504]
[1763393834896,0.52459184,3128.8,3126.9,0.405504]
[1763393835056,0.4977,3128.8,3126.9,0.405504]
[1763393835261,0.4977,3128.8,3126.9,0.2693]
[1763393835515,0.43239584,3128.7,3126.2,0.2693]
[1763393835813,0.43239584,3128.7,3124.8,6.53139717]
[1763393835959,0.405504,3128.3,3124.9,0.95444074]
[1763393836163,0.405504,3128.7,3124.9,0.95444074]
[1763393836164,0.405504,3128.1,3125.0,0.2693]
[1763393836364,0.405504,3128.1,3125.1,0.405504]
[1763393836600,0.405504,3127.9,3125.1,0.405504]
[1763393836899,0.02689184,3127.8,3125.2,0.2693]
[1763393837197,0.4977,3127.9,3125.2,0.2693]
[1763393837501,8.50781949,3130.0,3125.3,0.405504]
[1763393837502,0.4977,3128.4,3125.3,0.405504]
[1763393837662,0.4977,3128.8,3125.3,1.31249664]
[1763393837859,0.02689184,3128.7,3125.8,0.405504]
[1763393838090,0.4977,3128.8,3125.8,0.405504]
[1763393838261,8.50781949,3131.0,3126.0,0.405504]
[1763393838262,0.4607,3128.7,3126.0,0.405504]
[1763393838691,0.4607,3128.7,3126.2,0.405504]
[1763393838865,0.4607,3128.7,3126.1,0.2693]
[1763393838866,0.4607,3128.7,3126.4,0.405504]
[1763393839395,0.4607,3128.7,3126.6,0.405504]
[1763393839777,0.4607,3128.7,3126.8,0.405504]
[1763393840005,0.4607,3128.7,3127.0,0.405504]
[1763393840166,0.4607,3128.7,3126.9,0.405504]
[1763393840500,0.4607,3128.7,3126.3,0.2693]
[1763393840673,0.02689184,3128.6,3125.7,0.2693]
[1763393840862,0.43239584,3128.6,3125.7,0.2693]
[1763393841062,0.405504,3128.2,3125.1,0.2693]
[1763393841295,0.405504,3128.0,3125.1,0.2693]
[1763393841469,0.02689184,3127.9,3125.1,0.2693]
[1763393841674,0.405504,3128.3,3125.1,0.2693]
[1763393841869,0.405504,3128.1,3125.1,0.2693]
[1763393842103,0.405504,3128.1,3124.8,0.131]
[1763393842306,0.90699264,3128.9,3124.8,0.131]
[1763393842307,0.405504,3127.9,3124.8,0.4003]
[1763393842506,0.4232204,3127.8,3124.8,3.60050481]
[1763393842679,0.4607,3127.9,3125.0,0.405504]
[1763393842876,0.4607,3129.1,3125.0,0.405504]
[1763393843079,0.4607,3129.1,3125.2,0.405504]
[1763393843301,0.02689184,3129.0,3125.2,0.405504]
[1763393843501,0.02689184,3129.0,3125.4,0.405504]
[1763393843703,0.4607,3128.9,3125.4,0.405504]
[1763393844002,0.4607,3128.9,3125.8,1.31249664]
[1763393844162,0.02689184,3128.8,3125.8,1.31249664]
[1763393844367,0.4607,3128.9,3126.0,0.405504]
[1763393844564,0.1866,3129.2,3126.2,0.405504]
[1763393844797,0.6473,3129.2,3126.2,0.405504]
[1763393844999,0.6473,3129.2,3126.4,0.405504]
[1763393845202,0.4607,3129.1,3126.6,0.405504]
[1763393845620,0.4607,3129.1,3126.8,0.405504]
[1763393845767,0.1807,3129.5,3126.8,0.405504]
[1763393845968,0.1807,3129.5,3127.0,0.405504]
[1763393846208,0.6414,3129.5,3127.2,0.405504]
[1763393846798,0.1799,3129.5,3127.4,0.405504]
[1763393847005,0.4607,3129.4,3127.4,0.405504]
[1763393847209,0.4607,3129.4,3127.6,0.405504]
[1763393847584,0.4607,3129.4,3127.8,0.405504]
[1763393847782,0.4565,3130.2,3128.0,0.405504]
[1763393848004,0.4565,3130.9,3128.4,1.31249664]
[1763393848205,0.4565,3131.5,3128.6,0.405504]
[1763393848725,0.34671935,3132.9,3129.2,1.31249664]
[1763393848726,0.4565,3132.3,3129.2,1.31249664]
[1763393848933,0.4565,3132.8,3129.4,0.405504]
[1763393849231,0.4565,3132.8,3129.6,0.405504]
[1763393849434,0.1866,3132.9,3129.6,0.405504]
[1763393849637,0.002,3133.0,3130.0,0.405504]
[1763393849852,0.002,3133.0,3130.3,0.455504]
[1763393849991,0.002,3133.0,3130.5,1.31249664]
[1763393850190,0.002,3133.0,3130.7,2.84184367]
[1763393850440,0.002,3133.0,3130.9,0.405504]
[1763393850692,0.002,3133.6,3131.2,1.36249664]
[1763393850818,0.002,3133.6,3131.4,0.405504]
[1763393851019,0.002,3134.0,3132.2,0.405504]
[1763393851239,0.6442,3136.5,3134.0,0.405504]
[1763393851441,0.6442,3136.5,3134.2,0.405504]
[1763393851638,0.1877,3136.5,3134.0,0.2621]
[1763393851843,0.1877,3137.0,3134.4,0.405504]
[1763393852052,0.1877,3137.0,3134.6,0.405504]
[1763393852341,0.4565,3136.9,3134.1,0.2601]
[1763393852500,0.4565,3136.9,3134.3,0.90699264]
[1763393852820,0.4565,3136.9,3134.5,1.31249664]
[1763393853020,0.4565,3136.9,3135.1,1.31249664]
[1763393853198,0.4565,3136.9,3135.3,0.405504]
[1763393853396,0.002,3137.2,3135.7,1.31249664]
[1763393853634,0.002,3137.2,3135.9,0.405504]
[1763393853833,0.002,3137.2,3135.9,0.03188877]
[1763393854034,0.002,3137.2,3135.9,0.2601]
[1763393854246,0.002,3137.2,3136.1,0.405504]
[1763393854398,0.002,3137.2,3135.9,0.405504]
[1763393854596,0.002,3137.2,3135.3,1.57259664]
[1763393854796,0.002,3137.2,3135.5,0.405504]
[1763393855303,0.002,3137.2,3135.9,1.31249664]
[1763393855538,0.002,3137.2,3137.1,0.529504]
[1763393855732,0.002,3137.2,3137.1,0.405504]
[1763393856346,0.002,3137.2,3136.0,0.124]
[1763393856509,0.002,3137.2,3136.7,0.405504]
[1763393856829,0.002,3137.2,3136.1,0.665604]
[1763393857077,0.002,3137.2,3136.1,0.405504]
[1763393857796,0.4565,3137.1,3134.9,7.19093413]
[1763393857948,0.4565,3137.1,3134.9,10.38081734]
[1763393858150,0.4565,3137.1,3135.0,0.2601]
[1763393858348,0.002,3137.2,3135.6,0.405504]
[1763393858585,0.002,3137.2,3135.8,0.405504]
[1763393858780,0.4565,3137.1,3135.7,0.405504]
[1763393859165,0.02689184,3137.0,3134.6,0.82433308]
[1763393859378,0.4565,3137.1,3134.9,6.93083413]
[1763393859567,0.4565,3137.0,3134.9,6.93083413]
[1763393860092,0.4565,3137.0,3134.6,0.2601]
[1763393860254,0.4565,3137.0,3135.1,0.90699264]
[1763393860449,0.002,3137.2,3135.8,0.405504]
[1763393860712,0.6442,3137.1,3135.9,0.03188877]
[1763393861018,0.6442,3137.1,3135.5,0.90699264]
[1763393861019,0.4565,3137.1,3135.5,0.90699264]
[1763393861231,0.4565,3137.0,3134.9,0.90699264]
[1763393861517,0.4565,3137.0,3135.0,0.405504]
[1763393861878,0.4565,3137.0,3134.9,0.90699264]
[1763393862187,0.4565,3137.0,3134.2,6.93083413]
[1763393862188,0.02689184,3136.9,3134.2,6.93083413]
[1763393862409,0.4565,3137.0,3134.3,0.2601]
[1763393862575,0.48339184,3136.9,3134.3,1.16709264]
[1763393862776,0.4565,3136.9,3134.4,0.80979268]
[1763393862977,0.4565,3136.9,3134.5,0.405504]
[1763393863177,0.02689184,3136.8,3134.4,0.80979268]
[1763393863483,0.02689184,3136.8,3133.9,0.1362]
[1763393863484,0.405504,3136.6,3133.9,0.1362]
[1763393863808,0.02689184,3136.5,3133.9,0.1362]
[1763393864006,0.4565,3136.5,3134.4,6.93083413]
[1763393864182,0.4565,3136.5,3134.5,1.60007605]
[1763393864374,0.4565,3136.5,3134.6,0.405504]
[1763393864611,0.4565,3136.5,3134.0,0.2601]
[1763393864783,0.4565,3136.5,3134.1,0.405504]
[1763393864981,0.02689184,3136.4,3134.1,0.405504]
[1763393865180,0.4565,3136.5,3134.1,0.405504]
[1763393865418,0.48339184,3136.4,3134.1,0.405504]
[1763393866003,0.48339184,3136.4,3134.1,0.17087966]
[1763393866431,0.48339184,3136.4,3133.2,6.93083413]
[1763393866432,0.405504,3136.3,3133.2,6.93083413]
[1763393866638,0.02689184,3136.2,3133.2,6.93083413]
[1763393866780,0.4565,3136.2,3133.3,1.16709264]
[1763393867130,0.4565,3136.2,3133.4,0.405504]
[1763393867291,0.4565,3136.2,3133.4,0.665604]
[1763393867496,0.4565,3136.2,3133.9,1.31249664]
[1763393867796,0.4565,3136.2,3134.1,0.405504]
[1763393868118,0.4565,3136.2,3134.3,0.405504]
[1763393868277,0.002,3137.2,3134.3,0.405504]
[1763393868278,0.002,3137.2,3134.5,1.31249664]
[1763393868483,0.4565,3136.9,3135.1,1.31249664]
[1763393868697,0.4565,3136.9,3135.3,0.405504]
[1763393869382,0.4565,3136.9,3134.9,0.1362]
[1763393869578,0.4557,3136.9,3135.0,0.405504]
[1763393869890,0.4557,3136.9,3134.6,0.405504]
[1763393870090,0.4557,3136.9,3134.5,0.405504]
[1763393870330,0.4557,3136.9,3134.5,0.666404]
[1763393870882,0.4557,3136.9,3134.3,0.137]
[1763393871214,0.405504,3136.8,3134.5,0.001]
[1763393871426,0.02689184,3136.7,3134.5,0.001]
[1763393871606,0.4565,3136.7,3134.5,0.001]
[1763393872010,0.405504,3136.5,3134.5,0.001]
[1763393872407,0.4565,3136.4,3134.5,0.001]
[1763393872729,0.4565,3136.4,3134.6,0.666404]
[1763393873024,0.4565,3136.4,3134.5,0.001]
[1763393873025,0.02689184,3136.3,3134.8,0.405504]
[1763393873325,0.02689184,3136.3,3134.5,0.001]
[1763393873525,0.4565,3136.2,3134.5,0.001]
[1763393873722,0.02689184,3136.1,3134.5,0.001]
[1763393873913,0.6442,3136.2,3134.5,0.001]
[1763393874224,0.48339184,3136.1,3134.5,0.406504]
[1763393874403,0.4565,3136.1,3134.5,0.001]
[1763393874588,0.48339184,3136.1,3134.5,0.001]
[1763393875015,0.4565,3136.1,3134.5,0.001]
[1763393875987,0.1877,3134.6,3134.1,0.001]
[1763393876201,0.48339184,3134.5,3131.7,0.2629]
[1763393876490,0.405504,3134.4,3131.2,6.93083413]
[1763393876691,0.02689184,3134.3,3131.3,0.71947341]
[1763393876892,1.31249664,3134.4,3131.4,0.2639]
[1763393876893,0.4565,3134.2,3131.4,0.2639]
[1763393877197,0.02689184,3134.1,3131.4,0.2639]
[1763393877391,0.02689184,3134.1,3131.5,0.18903661]
[1763393877588,0.4567,3134.0,3131.6,0.405504]
[1763393877821,0.4567,3134.0,3131.6,0.2639]
[1763393877992,0.02689184,3133.9,3131.5,0.18903661]
[1763393878203,0.02689184,3133.9,3131.6,0.2639]
[1763393878537,0.4567,3133.8,3131.6,0.2639]
[1763393878892,0.02689184,3133.7,3130.9,0.2639]
[1763393879203,0.405504,3133.7,3131.0,0.71947341]
[1763393879400,0.4567,3133.6,3131.0,0.2639]
[1763393879803,0.02689184,3133.5,3131.0,0.2639]
[1763393880206,0.4567,3133.4,3131.1,1.31249664]
[1763393880410,1.24048268,3134.3,3131.5,1.31249664]
[1763393880598,0.4567,3134.3,3132.1,0.405504]
[1763393880937,0.4567,3134.3,3129.7,3.35914627]
[1763393880938,0.405504,3134.1,3130.6,0.2639]
[1763393881105,0.1898,3132.2,3130.4,0.137]
[1763393881306,0.1898,3132.2,3130.5,0.2639]
[1763393881533,0.1898,3132.6,3130.6,6.93083413]
[1763393881845,0.4567,3134.0,3130.7,1.65840778]
[1763393882078,0.1898,3133.0,3130.7,1.89036605]
[1763393882358,0.405504,3132.9,3130.4,0.137]
[1763393882508,0.02689184,3132.8,3130.4,0.137]
[1763393882922,0.405504,3132.6,3129.9,0.137]
[1763393883122,0.405504,3132.6,3128.9,0.16667106]
[1763393883123,6.93083413,3132.3,3128.9,0.16667106]
[1763393883317,2.03247189,3132.2,3128.9,0.16667106]
[1763393883554,0.405504,3132.0,3129.0,0.03195909]
[1763393883732,0.405504,3132.0,3128.9,0.43057106]
[1763393883733,0.02689184,3131.9,3128.9,0.43057106]
[1763393883919,1.31249664,3131.6,3128.9,0.16667106]
[1763393884256,0.1898,3129.0,3127.1,0.127]
[1763393884430,0.02689184,3128.9,3127.1,0.127]
[1763393884754,0.48359184,3128.9,3126.7,0.127]
[1763393884923,0.48359184,3128.9,3126.2,0.2639]
[1763393885124,0.405504,3128.8,3125.7,0.2639]
[1763393885350,0.405504,3128.8,3125.7,0.43110448]
[1763393885570,0.4567,3128.7,3125.8,7.29388118]
[1763393885869,0.43239584,3128.6,3125.9,0.2639]
[1763393886073,0.405504,3128.6,3125.9,0.2639]
[1763393886214,0.4567,3128.5,3125.9,0.2639]
[1763393886552,0.4567,3128.5,3126.0,1.66277076]
[1763393886710,0.4567,3128.5,3126.5,0.90699264]
[1763393886910,0.4567,3128.6,3126.6,0.2639]
[1763393887124,0.4567,3128.6,3126.7,0.405504]
[1763393887526,0.02689184,3128.5,3126.0,1.01967812]
[1763393887720,0.4567,3128.4,3126.1,0.68577483]
[1763393887926,0.4567,3128.4,3126.2,0.405504]
[1763393888124,0.4567,3128.4,3126.2,0.2639]
[1763393888348,0.02689184,3128.3,3125.8,0.62694705]
[1763393888521,0.4567,3128.4,3125.9,0.29589078]
[1763393888738,0.4567,3128.4,3126.0,0.38580749]
[1763393889147,0.4567,3128.4,3126.5,0.001]
[1763393889471,0.4567,3128.9,3126.6,0.405504]
[1763393889645,0.1898,3129.5,3126.9,1.31249664]
[1763393889964,0.1898,3129.5,3127.1,0.405504]
[1763393890263,0.48359184,3129.4,3127.1,0.405504]
[1763393890463,0.48359184,3129.4,3126.9,0.2639]
[1763393890672,0.405504,3129.3,3126.5,0.001]
[1763393890962,0.02689184,3129.2,3126.5,0.001]
[1763393891165,0.48359184,3129.2,3126.7,0.405504]
[1763393891326,0.4567,3129.2,3126.5,0.001]
[1763393891529,0.4567,3129.2,3126.8,0.2639]
[1763393891728,0.4567,3129.2,3126.9,0.405504]
[1763393891927,0.1898,3130.4,3127.9,6.93083413]
[1763393892153,0.48359184,3130.3,3128.0,2.00558005]
[1763393892369,0.02689184,3130.2,3128.0,1.31249664]
[1763393892673,0.02689184,3130.2,3128.0,0.669504]
[1763393892828,0.4567,3130.1,3128.0,0.405504]
[1763393893029,0.4559,3130.1,3127.6,0.405504]
[1763393893232,0.1898,3130.4,3128.0,1.31249664]
[1763393893426,7.12063413,3131.8,3128.6,1.31249664]
[1763393893427,0.1898,3131.8,3128.6,1.31249664]
[1763393893656,0.02689184,3131.7,3128.8,0.405504]
[1763393893858,0.21669184,3131.8,3128.8,0.405504]
[1763393894067,0.21669184,3131.8,3129.0,0.405504]
[1763393894254,0.21669184,3131.8,3128.2,1.17179264]
[1763393894454,0.405504,3131.7,3128.4,0.405504]
[1763393894862,0.02689184,3131.6,3128.6,0.405504]
[1763393895059,0.405504,3131.5,3128.6,0.405504]
[1763393895371,0.4567,3131.6,3128.8,0.405504]
[1763393895579,0.48359184,3131.5,3128.8,0.405504]
[1763393895978,0.405504,3131.4,3128.0,0.2648]
[1763393896179,1.31249664,3131.0,3127.5,0.1278]
[1763393896498,1.31249664,3131.0,3127.6,0.2648]
[1763393896775,0.48359184,3130.9,3127.7,0.90699264]
[1763393896975,0.405504,3130.8,3127.6,0.2648]
[1763393897175,0.02689184,3130.7,3127.6,0.2648]
[1763393897362,0.405504,3130.6,3127.6,0.2648]
[1763393897678,0.02689184,3130.5,3127.7,0.405504]
[1763393897854,0.02689184,3130.5,3127.9,0.405504]
[1763393898050,0.6523,3130.4,3127.9,0.405504]
[1763393898293,0.6523,3130.4,3128.3,0.405504]
[1763393898463,0.4622,3130.3,3128.5,0.405504]
[1763393899052,0.4622,3130.3,3128.0,0.405504]
[1763393899252,0.4622,3130.3,3128.2,0.405504]
[1763393899777,0.4622,3130.3,3128.4,0.405504]
[1763393900150,0.1901,3130.4,3128.6,0.405504]
[1763393900356,0.4622,3131.0,3128.6,3.60182184]
[1763393900557,0.02689184,3130.9,3128.8,0.405504]
[1763393900752,0.4622,3131.0,3128.1,0.405504]
[1763393901080,0.4622,3130.9,3128.3,0.405504]
[1763393901377,0.02689184,3130.8,3128.5,0.405504]
[1763393901877,0.4622,3130.7,3128.1,0.405504]
[1763393902097,0.43239584,3130.6,3128.1,0.41040203]
[1763393902298,1.31249664,3130.3,3127.5,0.1278]
[1763393902501,0.02689184,3130.2,3127.1,0.1278]
[1763393902798,0.405504,3130.1,3127.1,0.1278]
[1763393903100,0.405504,3130.1,3127.2,0.670304]
[1763393903300,0.4622,3130.0,3127.2,0.2648]
[1763393903488,0.02689184,3129.9,3127.3,0.2648]
[1763393903690,0.43239584,3129.9,3127.3,0.2648]
[1763393903862,0.4622,3129.8,3127.3,0.2648]
[1763393904388,0.4622,3129.8,3127.4,1.31249664]
[1763393904573,0.6523,3130.2,3127.7,1.31249664]
[1763393905106,0.6523,3130.2,3127.9,0.405504]
[1763393905107,0.4622,3130.1,3127.9,0.405504]
[1763393905399,0.48909184,3130.1,3127.6,0.405504]
[1763393905602,0.48909184,3130.1,3127.7,0.2648]
[1763393905779,0.48909184,3130.1,3127.8,0.405504]
[1763393906180,0.4622,3130.1,3127.7,1.31249664]
[1763393906377,0.02689184,3130.0,3127.9,0.405504]
[1763393906578,0.4622,3130.1,3127.7,0.405504]
[1763393906579,0.48909184,3130.1,3127.7,0.405504]
[1763393906783,0.4622,3130.0,3127.7,1.31249664]
[1763393906983,0.4622,3130.0,3127.8,0.2648]
[1763393907179,0.4622,3130.0,3127.9,0.03197033]
[1763393907405,0.1901,3130.2,3128.1,0.405504]
[1763393907707,0.4604,3130.1,3128.1,0.405504]
[1763393908169,0.48729184,3130.1,3128.0,0.405504]
[1763393908711,0.48729184,3130.1,3128.0,1.31249664]
[1763393908892,0.48729184,3130.1,3128.2,0.405504]
[1763393908893,0.4604,3130.1,3128.2,0.405504]
[1763393909095,0.4604,3130.1,3128.2,0.670304]
[1763393910020,0.4604,3130.1,3128.4,0.405504]
[1763393910208,0.4604,3130.1,3128.0,0.405504]
[1763393910387,0.48729184,3130.1,3128.1,0.2648]
[1763393910588,0.4604,3130.1,3127.9,0.1609267]
[1763393910913,0.4604,3130.1,3127.9,1.33271934]
[1763393911110,0.4604,3130.1,3128.0,0.405504]
[1763393911310,0.4604,3130.1,3128.0,0.670304]
[1763393911525,0.4604,3130.1,3128.2,0.405504]
[1763393912030,0.002,3130.6,3128.4,1.31249664]
[1763393912201,0.1946,3130.3,3128.6,0.405504]
[1763393912402,0.1946,3130.3,3128.5,0.85081308]
[1763393912725,0.4604,3130.2,3128.6,0.03196317]
[1763393912889,0.02689184,3130.1,3128.1,0.405504]
[1763393913088,0.4604,3130.0,3128.1,0.670304]
[1763393913354,0.4604,3130.0,3127.8,0.001]
[1763393913527,0.1946,3127.9,3127.8,0.001]
[1763393913686,0.655,3127.9,3127.8,0.001]
[1763393915318,0.655,3127.9,3127.8,0.001]
[1763393915833,0.6542,3127.9,3127.8,0.001]
[1763393916026,0.1946,3128.3,3127.8,0.001]
[1763393916326,0.4604,3128.2,3127.8,0.001]
[1763393916825,0.1946,3128.7,3127.8,0.001]
[1763393917002,0.1946,3129.1,3127.8,0.001]
[1763393917449,0.1946,3129.5,3128.0,0.405504]
[1763393917630,0.1946,3129.8,3128.0,0.405504]
[1763393918127,0.1946,3129.8,3128.0,0.2656]
[1763393918474,0.48729184,3129.7,3127.8,0.001]
[1763393918674,0.43239584,3129.6,3127.8,0.001]
[1763393918820,0.405504,3129.6,3127.8,0.001]
[1763393919025,0.405504,3129.4,3127.8,0.001]
[1763393919518,0.405504,3129.2,3127.8,0.001]
[1763393919721,0.1946,3127.9,3127.8,0.001]
[1763393920226,0.655,3127.9,3127.8,0.001]
[1763393920917,0.655,3128.3,3127.8,0.001]
[1763393921050,1.09231391,3129.7,3127.8,0.001]
[1763393921051,0.1946,3128.7,3127.8,0.001]
[1763393921439,0.48729184,3128.6,3127.8,0.001]
[1763393922125,0.4604,3128.6,3127.8,0.001]
[1763393922543,0.48729184,3128.6,3127.8,0.001]
[1763393923431,0.405504,3128.5,3127.4,0.001]
[1763393923634,0.1946,3127.5,3127.4,0.001]
[1763393923943,0.1946,3127.5,3126.5,0.001]
[1763393924140,0.48729184,3127.4,3126.5,0.001]
[1763393924346,0.43239584,3127.3,3126.5,0.001]
[1763393924556,0.02689184,3127.2,3125.0,0.001]
[1763393924865,0.4604,3127.2,3125.0,0.033]
[1763393925080,0.655,3127.5,3125.7,0.405504]
[1763393925431,0.1946,3127.5,3126.3,0.1316]
[1763393925660,0.4604,3128.0,3126.4,0.405504]
[1763393925859,0.1946,3128.7,3126.4,0.674104]
[1763393925860,0.4604,3128.4,3126.4,0.674104]
[1763393926030,0.1946,3128.7,3126.6,0.405504]
[1763393926242,0.4604,3129.6,3126.8,0.405504]
[1763393926557,0.4604,3129.6,3127.0,1.31249664]
[1763393926867,0.02689184,3130.5,3127.2,0.405504]
[1763393927030,0.002,3129.1,3127.2,0.405504]
[1763393927233,0.002,3129.1,3127.4,0.405504]
[1763393927568,0.002,3129.1,3127.6,0.405504]
[1763393927941,0.002,3129.1,3127.8,0.405504]
[1763393928151,0.002,3129.1,3128.0,0.405504]
[1763393928472,0.002,3129.1,3128.3,0.405504]
[1763393928769,0.002,3129.1,3128.5,0.405504]
[1763393929280,0.002,3129.1,3128.6,0.2686]
[1763393929589,0.002,3129.1,3128.7,0.405504]
[1763393929878,0.002,3129.1,3128.3,0.2686]
[1763393929879,0.002,3129.1,3128.4,0.405504]
[1763393930059,0.002,3129.1,3127.5,3.19742689]
[1763393930232,0.002,3129.1,3127.9,0.405504]
[1763393930875,0.002,3129.1,3128.0,0.2686]
[1763393931079,0.002,3129.1,3128.1,0.405504]
[1763393931371,0.002,3129.1,3128.3,0.405504]
[1763393931577,0.002,3129.1,3128.5,0.405504]
[1763393931948,0.002,3129.1,3127.6,0.405504]
[1763393932147,0.002,3129.1,3128.7,0.405504]
[1763393932349,0.002,3129.1,3128.4,0.405504]
[1763393932679,0.002,3129.1,3128.4,1.31249664]
[1763393932875,0.002,3129.1,3128.6,0.405504]
[1763393933540,0.002,3129.1,3128.6,0.674104]
[1763393933743,0.002,3129.1,3128.7,0.2686]
[1763393934343,0.002,3129.1,3128.8,1.31249664]
[1763393934840,0.002,3129.1,3128.6,0.405504]
[1763393935243,0.002,3129.1,3128.8,0.405504]
[1763393935645,0.002,3129.1,3128.2,0.405504]
[1763393936458,0.002,3129.1,3128.1,0.2686]
[1763393936779,0.002,3129.1,3128.2,0.405504]
[1763393937092,0.002,3129.1,3127.1,1.74367909]
[1763393937093,0.002,3129.1,3127.4,0.2686]
[1763393937494,0.4656,3129.0,3127.1,0.65301275]
[1763393937695,0.4656,3129.0,3126.6,0.2686]
[1763393937858,0.1962,3128.9,3126.6,3.4669449]
[1763393938192,0.1962,3128.9,3126.6,3.46696243]
[1763393938390,0.4656,3128.8,3126.7,0.34669624]
[1763393938696,0.4656,3128.8,3126.7,0.61529624]
[1763393938993,0.4648,3128.8,3126.4,3.19856704]
[1763393939292,0.4648,3128.8,3126.9,0.405504]
[1763393939883,0.4648,3128.8,3126.8,0.2694]
[1763393940255,0.4648,3128.8,3126.9,0.405504]
[1763393940794,0.02689184,3128.7,3126.3,0.1316]
[1763393940995,0.002,3129.1,3126.4,0.2694]
[1763393941205,0.002,3129.1,3127.1,0.405504]
[1763393941501,0.002,3130.6,3129.4,0.002]
[1763393941683,0.002,3130.6,3129.7,0.405504]
[1763393942060,0.002,3130.6,3128.5,0.88130613]
[1763393942061,0.4676,3129.8,3127.4,0.2694]
[1763393942305,0.02689184,3129.7,3127.5,0.405504]
[1763393942503,0.4676,3129.8,3127.5,0.405504]
[1763393942799,0.4676,3129.8,3127.7,1.31249664]
[1763393943495,0.4676,3129.8,3127.9,0.405504]
[1763393943713,0.002,3129.8,3127.9,0.405504]
[1763393943898,0.002,3129.8,3128.1,0.405504]
[1763393944406,0.4676,3129.8,3128.1,0.2694]
[1763393944635,0.4676,3129.8,3127.0,0.2694]
[1763393944927,0.1962,3127.1,3126.2,0.001]
[1763393945206,0.02689184,3128.1,3126.2,0.001]
[1763393945416,0.49249184,3128.1,3126.2,0.001]
[1763393945575,0.4656,3128.1,3126.2,0.001]
[1763393945992,0.49249184,3128.1,3126.2,0.001]
[1763393946164,0.4656,3128.1,3126.2,0.001]
[1763393946498,0.4656,3128.1,3126.5,0.001]
[1763393947059,0.02689184,3128.0,3126.5,0.001]
[1763393947287,0.4656,3128.0,3126.5,0.001]
[1763393947471,0.1962,3128.2,3126.6,0.2694]
[1763393947671,0.1962,3128.2,3126.5,0.406504]
[1763393947672,0.4656,3128.1,3126.5,0.406504]
[1763393948099,0.1962,3128.2,3126.6,0.2694]
[1763393948596,0.6618,3128.2,3126.5,0.406504]
[1763393948796,0.02689184,3128.1,3126.5,0.406504]
[1763393948999,0.49249184,3128.1,3126.5,0.001]
[1763393949296,0.4656,3128.1,3126.5,0.001]
[1763393949861,0.1962,3126.6,3126.5,0.001]
[1763393950259,0.6618,3126.6,3126.5,0.001]
[1763393953201,0.6618,3126.6,3126.2,0.001]
[1763393953407,0.49249184,3126.5,3126.2,0.001]
[1763393953791,0.49249184,3126.5,3125.5,0.001]
[1763393953990,0.4656,3126.5,3125.5,0.001]
[1763393955018,0.02689184,3126.4,3125.5,0.001]
[1763393955219,0.02689184,3126.4,3123.3,0.16623758]
[1763393955220,0.02689184,3126.3,3122.4,0.2694]
[1763393955392,0.405504,3126.1,3122.5,0.2694]
[1763393955593,0.02689184,3126.0,3122.5,0.2694]
[1763393955784,0.405504,3125.9,3122.5,0.2694]
[1763393955982,0.405504,3125.9,3122.2,0.25820814]
[1763393956244,0.405504,3125.7,3122.2,0.25820814]
[1763393956536,0.405504,3125.7,3122.2,0.36023496]
[1763393956839,0.405504,3125.5,3122.2,0.09083496]
[1763393957032,0.405504,3125.5,3122.3,0.03202767]
[1763393957183,0.4656,3125.4,3122.4,0.03202664]
[1763393957497,0.02689184,3125.3,3122.4,0.405504]
[1763393957699,0.405504,3125.1,3122.2,0.09083496]
[1763393957880,0.405504,3125.1,3122.2,0.36023496]
[1763393958193,0.90699264,3126.4,3122.2,0.36023496]
[1763393958194,0.4695,3125.0,3122.3,0.405504]
[1763393958396,0.02689184,3124.9,3122.3,0.405504]
[1763393958602,0.43239584,3124.9,3122.2,0.09083496]
[1763393958806,0.405504,3124.7,3122.2,0.09083496]
[1763393959009,0.4695,3124.8,3122.2,0.09083496]
[1763393959010,0.1956,3122.3,3122.2,0.09083496]
[1763393959192,0.69199184,3122.3,3122.2,0.09083496]
[1763393959399,0.6651,3122.3,3122.2,0.09083496]
[1763393959607,0.6651,3122.3,3122.1,0.0199]
[1763393959807,0.6651,3122.3,3120.2,0.2694]
[1763393959808,0.49639184,3122.2,3120.2,0.2694]
[1763393960007,0.1956,3122.3,3120.3,0.4121482]
[1763393960338,0.4695,3122.3,3120.3,0.3801]
[1763393960534,0.02689184,3122.2,3120.3,0.3801]
[1763393960690,0.4695,3122.3,3120.3,6.78972091]
[1763393961030,0.1956,3122.6,3120.5,0.405504]
[1763393961345,0.6651,3122.5,3120.5,0.405504]
[1763393961638,0.1956,3123.9,3120.5,0.405504]
[1763393961639,0.1956,3123.0,3120.7,0.405504]
[1763393961792,0.4695,3123.8,3120.9,0.405504]
[1763393961994,9.46524408,3126.3,3120.8,0.03204306]
[1763393961995,0.6651,3124.3,3121.3,0.405504]
[1763393962192,0.6651,3124.3,3120.8,0.90699264]
[1763393962193,0.6651,3124.3,3121.2,0.405504]
[1763393962419,0.02689184,3124.2,3121.2,0.405504]
[1763393962620,0.1956,3124.3,3121.5,0.405504]
[1763393962825,0.405504,3127.0,3121.7,8.92781747]
[1763393963034,0.1956,3126.1,3124.3,0.405504]
[1763393963193,0.1956,3126.1,3124.4,0.4755]
[1763393963396,0.94293061,3129.0,3124.5,0.43750912]
[1763393963607,0.1956,3127.0,3124.5,0.405504]
[1763393963797,0.1956,3127.0,3124.7,0.405504]
[1763393964239,0.02689184,3126.9,3124.7,0.881004]
[1763393964423,0.02689184,3126.8,3124.2,0.0625]
[1763393964632,0.4695,3126.9,3124.5,1.31249664]